bitfinex/quotes_SOLUSD_20220218
["timestamp","ask_amount","ask_price","bid_price","bid_amount"]
[1645202969716,112.0293831,91.33,91.216,109.4]
[1645202969917,112.0293831,91.33,91.24,16.4461]
[1645202970118,2.6293831,91.329,91.24,16.4461]
[1645202970517,2.6293831,91.329,91.225,41.97473467]
[1645202970918,2.6293831,91.329,91.25,16.4441]
[1645202971625,109.4,91.327,91.25,16.4441]
[1645202971819,109.4,91.327,91.221,24.0613]
[1645202972020,109.4,91.325,91.24,16.4461]
[1645202972321,2.6293831,91.324,91.24,16.4461]
[1645202972517,2.6293831,91.324,91.221,24.0613]
[1645202972518,109.4,91.323,91.221,24.0613]
[1645202972718,5.38,91.322,91.221,24.0613]
[1645202972919,109.4,91.321,91.221,24.0613]
[1645202973116,5.38,91.312,91.174,5.478]
[1645202973319,5.38,91.312,91.17,12.82]
[1645202973320,0.38,91.302,91.194,23.1112]
[1645202973519,5.38,91.302,91.194,23.1112]
[1645202973720,109.65,91.301,91.194,23.1112]
[1645202973919,5.38,91.292,91.194,23.1112]
[1645202974219,5.38,91.292,91.181,24.2179]
[1645202974420,109.4,91.29,91.181,24.2179]
[1645202974819,109.4,91.288,91.181,24.2179]
[1645202975020,109.4,91.288,91.19,16.4552]
[1645202975219,2.6293831,91.287,91.19,16.4552]
[1645202976243,112.0293831,91.287,91.19,16.4552]
[1645202976640,2.6293831,91.286,91.19,16.4552]
[1645202976841,5.38,91.282,91.19,16.4552]
[1645202977239,2.6293831,91.281,91.19,16.4552]
[1645202977441,0.25,91.28,91.181,24.2179]
[1645202977840,2.6293831,91.279,91.181,24.2179]
[1645202978441,109.4,91.269,91.181,24.2179]
[1645202978641,39.48629977,91.268,91.181,24.2179]
[1645202978843,42.11568287,91.268,91.181,24.2179]
[1645202979042,39.48629977,91.268,91.181,24.2179]
[1645202979242,2.6293831,91.267,91.19,16.4554]
[1645202979844,16.4573,91.26,91.181,24.2179]
[1645202980246,2.6293831,91.259,91.181,24.2179]
[1645202980445,0.25,91.258,91.181,24.2179]
[1645202980745,2.6293831,91.257,91.181,24.2179]
[1645202982745,2.6293831,91.257,91.17,16.4588]
[1645202982946,130.2980778,91.257,91.155,5.481]
[1645202983145,0.38,91.252,91.155,5.481]
[1645202983647,2.6293831,91.251,91.156,39.39134579]
[1645202983848,109.4,91.249,91.156,39.39134579]
[1645202984249,109.4,91.249,91.155,5.481]
[1645202984250,109.4,91.247,91.155,5.481]
[1645202984649,109.4,91.245,91.192,0.87162409]
[1645202984949,43.64539091,91.246,91.101,23.6607]
[1645202984950,5.38,91.232,91.101,23.6607]
[1645202985147,17.04651121,91.244,91.11,16.4686]
[1645202985148,5.38,91.212,91.11,16.4686]
[1645202985347,109.4,91.21,91.11,16.4686]
[1645202985548,125.8707,91.21,91.11,16.4686]
[1645202985950,2.6293831,91.209,91.11,16.4686]
[1645202986348,5.38,91.202,91.103,24.4054]
[1645202986547,5.38,91.202,91.057,4.48715836]
[1645202986548,5.38,91.202,91.06,54.9127]
[1645202986748,5.38,91.192,91.066,5.485]
[1645202986947,109.4,91.19,91.067,23.7848]
[1645202987349,109.4,91.188,91.084,37.66925372]
[1645202987748,2.6293831,91.187,91.084,37.66925372]
[1645202988350,5.38,91.182,91.07,16.475]
[1645202988554,5.38,91.172,91.041,53.188]
[1645202989053,2.6293831,91.171,91.053,109.4]
[1645202989251,45.50280757,91.17,91.054,43.15356059]
[1645202989451,109.4,91.169,91.07,16.4758]
[1645202989651,45.50280757,91.17,91.053,22.6428]
[1645202989652,45.50280757,91.17,91.071,21.3422662]
[1645202989851,45.50280757,91.17,91.072,6.25]
[1645202990053,45.50280757,91.17,91.073,114.887]
[1645202990255,45.50280757,91.17,91.074,6.25]
[1645202990454,45.50280757,91.17,91.075,5.487]
[1645202990653,45.50280757,91.17,91.076,6.25]
[1645202990954,45.50280757,91.17,91.077,5.487]
[1645202991156,45.50280757,91.17,91.078,6.25]
[1645202991356,45.50280757,91.17,91.11,16.4688]
[1645202991557,45.50280757,91.17,91.111,37.66656059]
[1645202992659,34.7366947,91.2,91.12,16.4667]
[1645202992855,54.8857,91.23,91.121,0.25]
[1645202993059,2.6293831,91.209,91.121,0.25]
[1645202993558,52.8334008,91.217,91.121,0.25]
[1645202993759,5.7008019,91.246,91.17,16.458]
[1645202993957,5.7008019,91.246,91.171,0.25]
[1645202994157,2.6293831,91.255,91.171,0.25]
[1645202994556,2.6293831,91.255,91.171,5.06]
[1645202994756,50.00747767,91.254,91.18,16.4545]
[1645202994956,50.00747767,91.254,91.171,5.06]
[1645202995159,2.6293831,91.253,91.171,5.06]
[1645202996562,2.6293831,91.253,91.19,16.4545]
[1645202997161,112.0293831,91.253,91.171,4.81]
[1645202997360,109.4,91.251,91.171,4.81]
[1645202997760,109.4,91.249,91.171,4.81]
[1645202997961,5.38,91.242,91.171,4.81]
[1645202998162,109.4,91.239,91.171,4.81]
[1645202998357,0.25,91.238,91.171,4.81]
[1645202998758,109.4,91.237,91.171,4.81]
[1645202998961,147.35217234,91.237,91.171,4.81]
[1645202999159,109.4,91.235,91.171,4.81]
[1645202999561,109.4,91.229,91.171,4.81]
[1645202999961,109.4,91.227,91.171,4.81]
[1645203000263,109.4,91.225,91.171,4.81]
[1645203000460,109.4,91.223,91.171,4.81]
[1645203000860,109.4,91.221,91.171,4.81]
[1645203001260,2.6293831,91.22,91.171,4.81]
[1645203001468,19.0939831,91.22,91.171,4.81]
[1645203001662,109.4,91.219,91.171,4.81]
[1645203001861,112.0293831,91.219,91.171,4.81]
[1645203002063,2.6293831,91.218,91.171,4.81]
[1645203003363,2.6293831,91.218,91.171,51.31463284]
[1645203003567,50.89024338,91.224,91.171,51.31463284]
[1645203003766,46.986,91.25,91.171,51.31463284]
[1645203003966,2.6293831,91.258,91.172,112.2793831]
[1645203004167,1.53935978,91.31,91.174,109.4]
[1645203004463,2.6293831,91.305,91.176,109.4]
[1645203004663,5.72401314,91.302,91.22,16.4493]
[1645203004863,164.11679643,91.301,91.22,4.95]
[1645203005064,166.74617953,91.301,91.22,4.95]
[1645203005264,12.82,91.3,91.22,4.95]
[1645203005463,5.38,91.292,91.22,4.95]
[1645203005662,109.4,91.289,91.22,4.95]
[1645203006164,2.6293831,91.288,91.18,54.8376]
[1645203006364,109.4,91.287,91.161,24.5873]
[1645203006569,109.4,91.287,91.145,24.5743]
[1645203006570,16.4603,91.27,91.145,24.5743]
[1645203006764,5.38,91.252,91.145,24.5743]
[1645203006965,109.4,91.249,91.145,24.5743]
[1645203007366,109.4,91.247,91.146,48.09454847]
[1645203007764,109.4,91.245,91.146,48.09454847]
[1645203008363,2.6293831,91.244,91.147,0.25]
[1645203008767,2.6293831,91.244,91.145,24.5743]
[1645203009369,109.4,91.242,91.13,16.4641]
[1645203009665,20.3826579,91.244,91.1,54.8867]
[1645203009666,5.38,91.222,91.1,54.8867]
[1645203009866,109.4,91.22,91.101,47.94740091]
[1645203010268,2.6293831,91.219,91.101,47.94740091]
[1645203010872,2.6293831,91.219,91.085,5.484]
[1645203010873,5.38,91.212,91.085,5.484]
[1645203011068,5.38,91.192,91.051,114.885]
[1645203011269,5.38,91.192,91.069,53.5696]
[1645203011570,2.6293831,91.191,91.069,53.5696]
[1645203011970,109.4,91.189,91.08,16.4747]
[1645203012170,105.0,91.188,91.08,16.4747]
[1645203012370,105.0,91.188,90.351,10.0]
[1645203012371,5.38,91.172,91.03,12.82]
[1645203012571,5.38,91.142,91.025,49.4475]
[1645203012970,5.38,91.132,91.025,49.4475]
[1645203013371,2.6293831,91.131,91.053,45.18190164]
[1645203013570,16.3498,91.146,91.053,45.18190164]
[1645203013771,12.82,91.15,91.053,45.18190164]
[1645203014382,46.4709228,91.149,91.054,2.6293831]
[1645203014571,46.4709228,91.149,91.055,0.25]
[1645203014974,109.4,91.139,91.053,45.18190164]
[1645203015171,16.4773,91.14,91.053,45.18190164]
[1645203015374,2.6293831,91.138,91.05,16.4792]
[1645203015573,0.25,91.137,91.05,16.4792]
[1645203015976,2.6293831,91.136,91.05,16.4792]
[1645203016378,109.4,91.134,91.05,16.4792]
[1645203017004,112.0293831,91.134,91.051,6.0]
[1645203017198,0.38,91.132,91.025,49.4475]
[1645203017403,109.4,91.129,91.025,49.4475]
[1645203017598,12.82,91.13,91.025,49.4475]
[1645203017599,109.4,91.119,91.025,49.4475]
[1645203017802,109.4,91.117,91.025,49.4475]
[1645203018203,109.4,91.117,91.01,4.4444]
[1645203018404,2.6293831,91.116,91.01,4.4444]
[1645203019006,16.4875,91.11,91.01,4.4444]
[1645203019212,16.4875,91.11,91.013,42.05461023]
[1645203019404,2.6293831,91.109,91.01,4.4444]
[1645203019805,14.05736666,91.109,91.01,4.4444]
[1645203020004,0.38,91.102,91.01,4.4444]
[1645203020207,12.82,91.1,91.01,4.4444]
[1645203020405,109.4,91.089,91.01,4.4444]
[1645203020806,54.976,91.09,91.01,4.4444]
[1645203021006,2.6293831,91.088,91.01,4.4444]
[1645203021207,41.96587442,91.087,91.01,4.4444]
[1645203021606,2.6293831,91.086,91.01,4.4444]
[1645203022008,16.4928,91.08,91.01,4.4444]
[1645203022406,2.6293831,91.079,91.01,4.4444]
[1645203022809,0.25,91.078,91.01,4.4444]
[1645203023007,16.4909,91.07,91.01,4.4444]
[1645203023208,29.3109,91.07,91.01,4.4444]
[1645203023410,130.74321346,91.069,91.01,4.4444]
[1645203023610,109.4,91.067,91.01,4.4444]
[1645203024109,0.38,91.062,91.01,4.4444]
[1645203024409,18.71383036,91.061,91.01,4.4444]
[1645203024609,109.4,91.06,91.012,0.69507652]
[1645203024811,2.6293831,91.06,91.012,0.69507652]
[1645203025010,2.6293831,91.059,91.012,0.69507652]
[1645203025410,16.4972,91.05,91.012,0.69507652]
[1645203025810,2.6293831,91.049,91.012,0.69507652]
[1645203026011,53.64626038,91.048,91.012,0.69507652]
[1645203026410,16.4977,91.04,91.012,0.69507652]
[1645203026812,2.6293831,91.039,91.012,0.69507652]
[1645203027013,53.64626038,91.048,91.012,0.69507652]
[1645203027417,12.82,91.07,91.012,0.69507652]
[1645203027418,2.6293831,91.06,91.012,0.69507652]
[1645203027615,2.6293831,91.06,91.012,6.41507652]
[1645203027814,49.2402,91.129,91.013,0.25]
[1645203028015,49.2402,91.129,91.012,6.41507652]
[1645203028314,47.81016063,91.128,91.012,6.41507652]
[1645203028514,47.81016063,91.128,91.013,109.65]
[1645203028722,47.81016063,91.128,91.015,109.4]
[1645203028913,47.81016063,91.128,91.019,43.25751703]
[1645203028914,109.4,91.127,91.019,43.25751703]
[1645203029113,112.0293831,91.127,91.019,43.25751703]
[1645203029313,2.6293831,91.126,91.019,43.25751703]
[1645203029514,109.4,91.125,91.01,4.4444]
[1645203029715,109.4,91.119,91.01,4.4444]
[1645203030116,0.38,91.092,91.01,4.4444]
[1645203030315,109.4,91.089,91.01,4.4444]
[1645203030516,41.06433316,91.088,91.011,40.20557759]
[1645203030915,41.06433316,91.088,91.01,4.4444]
[1645203031718,112.0293831,91.087,91.01,4.4444]
[1645203032115,2.6293831,91.086,91.01,4.4444]
[1645203032818,109.4,91.079,91.01,4.4444]
[1645203033217,2.6293831,91.078,91.01,4.4444]
[1645203033817,0.25,91.077,91.01,4.4444]
[1645203034216,2.6293831,91.076,91.01,4.4444]
[1645203035419,2.6293831,91.087,91.011,48.00681664]
[1645203035620,46.79446122,91.088,91.012,0.25]
[1645203035621,41.06433316,91.088,91.012,0.25]
[1645203035819,0.25,91.087,91.012,0.25]
[1645203036019,41.06433316,91.088,91.012,0.25]
[1645203036620,41.06433316,91.088,91.013,5.49]
[1645203037021,43.69371626,91.088,91.013,5.49]
[1645203037421,109.4,91.087,91.013,5.49]
[1645203037623,0.25,91.086,91.013,5.49]
[1645203037821,2.8793831,91.086,91.013,5.49]
[1645203038021,2.6293831,91.085,91.013,5.49]
[1645203038420,16.4893,91.08,91.013,5.49]
[1645203038824,2.6293831,91.079,91.013,5.49]
[1645203039621,109.4,91.069,91.013,5.49]
[1645203040024,2.6293831,91.068,91.013,5.49]
[1645203040621,109.4,91.066,91.013,5.49]
[1645203040822,109.4,91.059,91.013,5.49]
[1645203041226,2.8793831,91.058,91.013,5.49]
[1645203041623,2.6293831,91.057,91.013,5.49]
[1645203042224,0.25,91.058,91.013,5.49]
[1645203043322,0.25,91.066,91.013,5.49]
[1645203043523,46.52220105,91.067,91.013,5.49]
[1645203044322,2.6293831,91.079,91.013,5.49]
[1645203044524,2.6293831,91.093,91.02,16.4846]
[1645203045324,46.56894979,91.092,91.02,16.4846]
[1645203045726,49.19833289,91.092,91.02,16.4846]
[1645203045926,0.25,91.091,91.02,16.4846]
[1645203046327,2.6293831,91.09,91.02,16.4846]
[1645203047028,19.1159831,91.09,91.02,16.4846]
[1645203047228,19.1159831,91.09,91.015,0.68468648]
[1645203047426,2.6293831,91.089,91.015,0.68468648]
[1645203048228,2.6293831,91.089,91.02,16.4849]
[1645203049030,2.6293831,91.103,91.021,0.25]
[1645203049230,2.6293831,91.103,91.022,0.68323783]
[1645203049729,0.25,91.102,91.022,0.68323783]
[1645203050030,2.6293831,91.101,91.03,16.4825]
[1645203050230,2.6293831,91.101,91.031,4.00746187]
[1645203050430,39.79923152,91.102,91.031,4.00746187]
[1645203051132,39.79923152,91.102,91.04,16.4803]
[1645203051331,2.8793831,91.101,91.04,16.4803]
[1645203051732,2.6293831,91.1,91.04,16.4803]
[1645203052135,2.6293831,91.1,91.022,0.68323783]
[1645203053633,2.6293831,91.1,91.023,51.76480156]
[1645203055436,2.6293831,91.1,91.03,16.4838]
[1645203055636,0.25,91.099,91.03,16.4838]
[1645203055838,109.65,91.099,91.03,16.4838]
[1645203056038,109.65,91.099,91.01,5.12722397]
[1645203056039,2.6293831,91.098,91.01,5.12722397]
[1645203056839,2.6293831,91.098,91.011,44.47891297]
[1645203057038,109.4,91.089,91.011,44.47891297]
[1645203057238,46.55550982,91.088,91.011,44.47891297]
[1645203057439,49.18489292,91.088,91.011,44.47891297]
[1645203057639,2.6293831,91.087,91.011,44.47891297]
[1645203057941,16.4881,91.08,91.011,44.47891297]
[1645203059240,16.4924,91.06,91.01,5.12722397]
[1645203059440,109.4,91.059,91.01,4.4444]
[1645203059639,2.6293831,91.059,91.01,4.4444]
[1645203060450,2.6293831,91.086,91.01,4.4444]
[1645203060645,0.25,91.085,91.01,4.4444]
[1645203061247,55.58579641,91.085,91.01,4.4444]
[1645203061545,109.4,91.084,91.01,20.9323]
[1645203061749,109.4,91.084,91.01,4.4444]
[1645203061750,112.0293831,91.084,91.01,4.4444]
[1645203061947,2.6293831,91.083,91.01,4.4444]
[1645203062348,109.4,91.079,91.01,4.4444]
[1645203062548,109.4,91.059,91.01,4.4444]
[1645203062749,109.4,91.057,91.01,4.4444]
[1645203063349,2.6293831,91.056,91.01,4.4444]
[1645203064351,109.4,91.049,91.01,4.4444]
[1645203065570,0.25,91.055,91.01,4.4444]
[1645203065767,0.25,91.055,91.01,48.54320921]
[1645203065968,48.648,91.082,91.01,48.54320921]
[1645203066769,45.01152394,91.081,91.01,48.54320921]
[1645203067370,16.4877,91.07,91.01,65.03090921]
[1645203068771,16.4858,91.08,91.01,65.03090921]
[1645203069168,109.4,91.079,91.01,20.9321]
[1645203069369,112.0293831,91.079,91.01,4.4444]
[1645203069571,2.6293831,91.078,91.01,4.4444]
[1645203069772,0.25,91.077,91.01,4.4444]
[1645203070174,2.6293831,91.076,91.01,4.4444]
[1645203070373,109.4,91.059,91.01,4.4444]
[1645203070872,2.6293831,91.058,91.01,4.4444]
[1645203071275,109.4,91.056,91.01,4.4444]
[1645203071475,109.4,91.049,91.01,4.4444]
[1645203072075,2.6293831,91.048,91.01,4.4444]
[1645203072476,109.4,91.039,90.931,5.492]
[1645203072674,29.3162,91.04,90.89,12.82]
[1645203072675,109.4,91.037,90.922,23.4692]
[1645203073273,153.1443972,91.035,90.942,45.75642701]
[1645203073474,109.4,91.019,90.942,45.75642701]
[1645203073674,16.5034,91.01,90.93,16.5014]
[1645203073876,109.4,91.009,90.93,16.5014]
[1645203074274,2.6293831,91.008,90.93,16.5014]
[1645203074673,2.6293831,91.008,90.931,39.97746753]
[1645203075376,2.6293831,91.008,90.93,16.5014]
[1645203075575,2.6293831,91.008,90.922,23.4692]
[1645203076177,16.5034,91.01,90.922,23.4692]
[1645203076381,42.1874655,91.018,90.942,45.34962551]
[1645203076676,42.1874655,91.018,90.97,16.4954]
[1645203076876,12.82,91.06,90.97,16.4954]
[1645203076877,2.6293831,91.047,90.97,16.4954]
[1645203077076,1.53935978,91.073,90.97,16.4954]
[1645203077278,109.4,91.058,90.97,16.4954]
[1645203077477,112.0293831,91.058,90.97,16.4954]
[1645203077879,109.4,91.056,90.97,16.4954]
[1645203078080,109.4,91.039,90.96,16.4971]
[1645203078279,54.9886,91.05,90.96,16.4971]
[1645203078479,54.9886,91.05,90.961,0.25]
[1645203078680,109.4,91.049,90.942,5.494]
[1645203078882,109.4,91.049,90.943,0.25]
[1645203079080,109.4,91.049,90.997,0.6884126]
[1645203079281,2.6293831,91.048,90.997,0.6884126]
[1645203079482,109.4,91.038,90.997,0.6884126]
[1645203079882,2.6293831,91.037,90.942,5.494]
[1645203080284,109.4,91.036,90.942,5.494]
[1645203080482,126.52079111,91.036,90.942,5.494]
[1645203080684,109.4,91.034,90.942,5.494]
[1645203080985,109.4,91.029,90.942,5.494]
[1645203081184,109.4,91.019,90.942,5.494]
[1645203081389,109.4,91.017,90.942,5.494]
[1645203082187,16.5038,91.01,90.942,5.494]
[1645203083385,109.4,91.009,90.942,5.494]
[1645203083590,0.25,91.008,90.942,5.494]
[1645203083990,0.25,91.008,90.999,0.68799851]
[1645203084988,2.8793831,91.008,90.942,5.494]
[1645203085388,2.8793831,91.008,90.943,40.85417179]
[1645203085787,2.8793831,91.008,90.942,5.494]
[1645203089394,2.6293831,91.008,90.942,5.494]
[1645203093096,0.25,91.007,90.942,5.494]
[1645203093294,2.6293831,91.008,90.942,5.494]
[1645203094597,16.5028,91.0,90.942,5.494]
[1645203094797,0.25,90.999,90.942,5.494]
[1645203095096,109.4,91.013,90.942,5.494]
[1645203095499,2.6293831,91.012,90.942,5.494]
[1645203095701,109.4,91.009,90.942,5.494]
[1645203096302,0.25,91.008,90.942,5.494]
[1645203096500,2.8793831,91.008,90.942,5.494]
[1645203096703,0.25,91.008,90.942,5.494]
[1645203096902,2.6293831,91.007,90.942,5.494]
[1645203098702,19.0283831,91.007,90.942,5.494]
[1645203098902,2.6293831,91.007,90.943,0.25]
[1645203099105,4.16874288,91.028,90.943,2.8793831]
[1645203099337,12.82,91.06,90.943,2.8793831]
[1645203099338,1.53935978,91.034,90.944,23.7113]
[1645203099537,1.53935978,91.034,90.945,0.25]
[1645203099737,1.53935978,91.032,90.945,6.25]
[1645203099941,1.53935978,91.032,90.95,16.499]
[1645203100242,42.13107845,91.044,90.952,109.4]
[1645203100436,42.13107845,91.044,90.954,109.4]
[1645203100636,42.13107845,91.044,90.955,6.25]
[1645203101335,0.25,91.043,90.97,16.4901]
[1645203101536,0.25,91.043,90.971,60.67764419]
[1645203101736,0.25,91.043,90.971,54.42764419]
[1645203102038,0.25,91.043,90.96,54.9668]
[1645203102039,109.65,91.043,90.96,54.9668]
[1645203102337,1.53935978,91.039,90.956,47.4877]
[1645203102535,112.2793831,91.043,90.956,47.4877]
[1645203102536,109.4,91.029,90.956,47.4877]
[1645203103044,1.53935978,91.032,90.956,47.4877]
[1645203103236,12.82,91.08,90.956,47.4877]
[1645203103237,1.53935978,91.045,90.957,6.0]
[1645203103437,1.53935978,91.056,90.971,109.4]
[1645203103637,1.53935978,91.074,90.99,125.887]
[1645203103836,54.76760275,91.055,90.991,51.2278864]
[1645203104036,54.76760275,91.055,90.992,45.8903]
[1645203104238,1.53935978,91.077,90.993,6.25]
[1645203104438,1.53935978,91.08,90.993,6.25]
[1645203104837,1.53935978,91.077,90.993,6.25]
[1645203105038,1.53935978,91.083,90.993,6.25]
[1645203105239,1.53935978,91.08,91.011,14.3647515]
[1645203105638,53.34091275,91.082,91.011,14.3647515]
[1645203105639,1.53935978,91.081,91.011,14.3647515]
[1645203105843,1.53935978,91.079,91.01,16.4846]
[1645203106040,1.53935978,91.079,90.992,45.8903]
[1645203106240,109.4,91.069,90.992,45.8903]
[1645203106445,109.4,91.069,90.959,48.4904]
[1645203106638,109.4,91.067,90.959,48.4904]
[1645203106838,134.0268,91.067,90.96,47.62447629]
[1645203107040,150.70118705,91.067,90.96,47.62447629]
[1645203107241,109.4,91.059,90.97,16.4935]
[1645203107838,1.53935978,91.058,90.97,16.4935]
[1645203108038,1.53935978,91.052,90.97,16.4935]
[1645203108238,40.6735928,91.051,90.97,16.4935]
[1645203109039,40.6735928,91.051,90.857,5.73225783]
[1645203109040,5.38,91.012,90.857,5.73225783]
[1645203109240,17.11625,91.05,90.833,76.6233]
[1645203109241,12.82,91.02,90.874,16.7336]
[1645203109440,1.53935978,91.001,90.874,16.7336]
[1645203109639,1.53935978,90.995,90.873,16.7151]
[1645203109841,1.53935978,90.985,90.906,44.29717966]
[1645203110039,1.53935978,90.979,90.906,44.29717966]
[1645203110239,54.59177137,90.994,90.906,44.29717966]
[1645203110240,53.29323835,90.978,90.906,44.29717966]
[1645203110439,55.92262145,90.978,90.906,44.29717966]
[1645203110639,2.6293831,90.977,90.906,44.29717966]
[1645203111043,53.29323835,90.978,90.89,16.508]
[1645203111341,16.5091,90.97,90.89,16.508]
[1645203111541,0.25,90.969,90.89,16.508]
[1645203112139,0.25,90.969,90.906,51.67243463]
[1645203112739,0.25,90.969,90.89,16.508]
[1645203113640,0.25,90.969,90.909,48.12753524]
[1645203114043,0.25,90.969,90.89,16.508]
[1645203115043,53.29323835,90.978,90.918,48.08884038]
[1645203115242,53.29323835,90.978,90.88,55.0097]
[1645203115443,53.29323835,90.978,90.881,22.5102]
[1645203116143,53.29323835,90.978,90.911,42.14255471]
[1645203116843,53.29323835,90.978,90.881,22.5102]
[1645203117449,53.29323835,90.978,90.89,16.5051]
[1645203117644,53.29323835,90.978,90.908,49.69798018]
[1645203118745,1.53935978,90.998,90.908,49.69798018]
[1645203118946,2.6293831,91.006,90.918,109.65]
[1645203119146,16.5934,91.018,90.92,109.4]
[1645203119352,0.38,91.052,90.922,109.4]
[1645203119353,1.53935978,91.023,90.922,109.4]
[1645203119549,1.53935978,91.027,90.924,109.4]
[1645203119748,45.74882965,91.026,90.926,109.4]
[1645203119950,45.74882965,91.026,90.928,109.4]
[1645203120147,1.53935978,91.023,90.925,9.64465772]
[1645203120355,1.53935978,91.017,90.925,9.64465772]
[1645203120547,0.25,91.016,90.925,9.64465772]
[1645203120748,20.96076879,91.016,90.925,9.64465772]
[1645203121049,20.71076879,91.016,90.925,9.64465772]
[1645203121850,20.71076879,91.016,90.923,24.8434]
[1645203122150,131.17787818,91.015,90.923,24.8434]
[1645203122452,1.53935978,91.011,90.89,55.0091]
[1645203122650,16.5058,90.99,90.9,16.5043]
[1645203122849,47.95071235,90.989,90.912,50.22582859]
[1645203123049,109.4,90.988,90.912,50.22582859]
[1645203123449,47.95071235,90.989,90.912,50.22582859]
[1645203123854,47.95071235,90.989,90.92,16.5018]
[1645203124051,16.5031,91.01,90.921,0.25]
[1645203124252,67.8222,91.04,90.921,0.25]
[1645203124253,1.53935978,91.025,90.921,0.25]
[1645203124452,1.53935978,91.031,90.921,0.25]
[1645203124652,1.53935978,91.03,90.922,2.6293831]
[1645203124955,50.16527844,91.029,90.923,0.25]
[1645203125155,50.16527844,91.029,90.93,16.5]
[1645203125352,50.16527844,91.029,90.931,9.36680931]
[1645203125751,50.16527844,91.029,90.932,118.0293831]
[1645203125951,50.16527844,91.029,90.933,0.25]
[1645203126153,50.16527844,91.029,90.933,2.8793831]
[1645203126350,1.53935978,91.037,90.941,109.4]
[1645203126551,67.7985,91.08,90.94,16.4974]
[1645203126552,1.53935978,91.053,90.943,109.4]
[1645203126857,1.53935978,91.056,90.945,109.4]
[1645203127153,1.53935978,91.057,90.947,109.4]
[1645203127352,50.32003709,91.055,90.97,16.4913]
[1645203127553,50.32003709,91.055,90.971,0.25]
[1645203128352,0.25,91.054,90.971,6.25]
[1645203128952,0.25,91.054,90.98,16.4914]
[1645203129155,109.65,91.054,90.98,16.4914]
[1645203129357,2.6293831,91.053,90.961,23.224]
[1645203129558,1.53935978,91.051,90.962,6.0]
[1645203129758,1.53935978,91.05,90.961,23.224]
[1645203129957,110.93935978,91.049,90.961,23.224]
[1645203130161,109.4,91.039,90.961,23.224]
[1645203130360,109.4,91.039,90.941,23.0094]
[1645203130559,109.4,91.037,90.942,6.0]
[1645203130857,109.4,91.037,90.941,23.0094]
[1645203131057,2.6293831,91.036,90.941,23.0094]
[1645203131257,109.4,91.035,90.942,46.71591797]
[1645203131460,16.4982,91.03,90.942,46.71591797]
[1645203131658,109.4,91.029,90.941,23.0094]
[1645203131861,132.74015189,91.029,90.941,23.0094]
[1645203132261,109.4,91.027,90.941,23.0094]
[1645203132661,2.6293831,91.026,90.942,40.76278061]
[1645203133077,20.71076879,91.028,90.95,16.498]
[1645203133279,51.71804258,91.019,90.95,16.498]
[1645203134081,2.6293831,91.018,90.95,16.498]
[1645203135080,51.71804258,91.019,90.95,16.498]
[1645203135683,0.25,91.018,90.95,16.498]
[1645203135883,0.25,91.027,90.95,16.498]
[1645203136086,0.25,91.027,90.942,40.76278061]
[1645203136087,0.25,91.027,90.97,16.4941]
[1645203136484,48.2391,91.038,90.97,16.4941]
[1645203136684,51.74755416,91.037,90.971,18.57985729]
[1645203137285,51.49755416,91.037,90.971,18.57985729]
[1645203138187,1.53935978,91.034,90.97,16.4941]
[1645203138586,0.25,91.033,90.97,16.4941]
[1645203138787,1.78935978,91.033,90.97,16.4941]
[1645203139187,1.78935978,91.033,90.97,57.35168822]
[1645203139587,1.53935978,91.032,90.97,57.35168822]